[Event "Turniej 30-lecia Liceum im. Józefa Bema"]
[Site "Warsaw, Poland"]
[Date "????.??.??"]
[Round "2.2"]
[White "Owczarzak, Jerzy"]
[Black "Krasiewicz, Robert"]
[Result "1-0"]
[TimeControl "0:10:02"]
[WhiteElo "2264"]
[BlackElo "1948"]

1. b4 {[%clk 00:10:01]} {[%emt 00:00:02]} e5 {[%clk 00:10:01]} {[%emt
00:00:03]} 2. Bb2 {[%clk 00:10:02]} Bxb4 {[%clk 00:09:59]} {[%emt 00:00:04]} 3.
Bxe5 {[%clk 00:10:02]} {[%emt 00:00:02]} Nf6 {[%clk 00:10:00]} {[%emt
00:00:01]} 4. Nf3 {[%clk 00:10:03]} {[%emt 00:00:01]} Nc6 {[%clk 00:10:00]}
{[%emt 00:00:02]} 5. Bb2 {[%clk 00:10:04]} d5 {[%clk 00:09:58]} {[%emt
00:00:04]} 6. e3 {[%clk 00:10:05]} {[%emt 00:00:01]} O-O {[%clk 00:09:55]}
{[%emt 00:00:05]} 7. Be2 {[%clk 00:10:06]} {[%emt 00:00:01]} Re8 {[%clk
00:09:50]} {[%emt 00:00:07]} 8. O-O {[%clk 00:10:06]} {[%emt 00:00:02]} Bg4
{[%clk 00:09:27]} {[%emt 00:00:25]} 9. h3 {[%clk 00:10:06]} {[%emt 00:00:02]}
Bxf3 {[%clk 00:08:57]} {[%emt 00:00:31]} 10. Bxf3 {[%clk 00:10:07]} {[%emt
00:00:01]} Ne5 {[%clk 00:08:57]} {[%emt 00:00:02]} 11. Be2 {[%clk 00:10:01]}
{[%emt 00:00:09]} c5 {[%clk 00:08:07]} {[%emt 00:00:51]} 12. d3 {[%clk
00:09:37]} {[%emt 00:00:26]} Rc8 {[%clk 00:07:44]} {[%emt 00:00:25]} 13. Nd2
{[%clk 00:08:46]} {[%emt 00:00:53]} b5 {[%clk 00:07:06]} {[%emt 00:00:40]} 14.
a4 {[%clk 00:07:30]} Bxd2 {[%clk 00:06:36]} {[%emt 00:01:51]} 15. Qxd2 {[%clk
00:07:30]} b4 {[%clk 00:06:32]} {[%emt 00:00:07]} 16. a5 {[%clk 00:06:18]} Qe7
{[%clk 00:06:09]} {[%emt 00:01:40]} 17. Rfd1 {[%clk 00:05:38]} h6 {[%clk
00:05:04]} {[%emt 00:01:49]} 18. Bf1 {[%clk 00:03:49]} Qb7 {[%clk 00:04:17]}
{[%emt 00:02:40]} 19. Qc1 {[%clk 00:03:19]} c4 {[%clk 00:04:09]} {[%emt
00:00:42]} 20. dxc4 {[%clk 00:03:10]} dxc4 {[%clk 00:04:05]} {[%emt 00:00:16]}
21. Bd4 {[%clk 00:03:05]} Re6 {[%clk 00:03:39]} {[%emt 00:00:35]} 22. Qb2
{[%clk 00:02:47]} c3 {[%clk 00:03:00]} {[%emt 00:01:01]} 23. Qb3 {[%clk
00:02:43]} Ne4 {[%clk 00:02:54]} {[%emt 00:00:14]} 24. a6 {[%clk 00:02:28]} Qe7
{[%clk 00:02:54]} 25. Qd5 {[%clk 00:02:28]} Nd2 {[%clk 00:02:54]} 26. Qb7
{[%clk 00:02:28]} Rc7 {[%clk 00:02:54]} 27. Qb8+ {[%clk 00:02:28]} Kh7 {[%clk
00:02:54]} 28. Be2 {[%clk 00:02:28]} f5 {[%clk 00:02:54]} 29. Qb5 {[%clk
00:02:28]} g6 {[%clk 00:01:27]} {[%emt 00:04:18]} 30. Ra4 {[%clk 00:00:10]} Nc6
{[%clk 00:00:45]} {[%emt 00:00:52]} 31. Bc5 {[%clk 00:00:10]} Qg5 {[%clk
00:00:45]} 32. Bxb4 {[%clk 00:00:10]} Ne4 {[%clk 00:00:45]} 33. Bc5 {[%clk
00:00:10]} f4 {[%clk 00:00:45]} 34. Rxe4 {[%clk 00:00:10]} Rxe4 {[%clk
00:00:45]} 35. Bf3 {[%clk 00:00:10]} Re5 {[%clk 00:00:45]} 36. exf4 {[%clk
00:00:10]} Qxf4 {[%clk 00:00:04]} {[%emt 00:01:09]} 37. Bxc6 {[%clk 00:00:07]}
Qg5 {[%clk 00:00:00]} {[%emt 00:00:06]} 1-0

[Event "Turniej 30-lecia Liceum im. Józefa Bema"]
[Site "Warsaw, Poland"]
[Date "????.??.??"]
[Round "2.3"]
[White "Bielinski, Leszek"]
[Black "Babik, Tomasz"]
[Result "0-1"]
[TimeControl "0:10:02"]
[WhiteElo "1854"]
[BlackElo "2187"]

1. e4 {[%clk 00:10:00]} {[%emt 00:00:03]} c5 {[%clk 00:10:03]} {[%emt
00:00:02]} 2. g3 {[%clk 00:10:01]} {[%emt 00:00:01]} Nc6 {[%clk 00:10:03]}
{[%emt 00:00:02]} 3. Bg2 {[%clk 00:10:02]} g6 {[%clk 00:10:04]} {[%emt
00:00:02]} 4. Ne2 {[%clk 00:10:03]} {[%emt 00:00:01]} Bg7 {[%clk 00:10:05]}
{[%emt 00:00:01]} 5. O-O {[%clk 00:10:02]} {[%emt 00:00:02]} Nf6 {[%emt
00:00:13]} 6. c3 {[%clk 00:09:56]} {[%emt 00:00:05]} d5 {[%clk 00:09:44]}
{[%emt 00:00:16]} 7. exd5 {[%clk 00:09:51]} {[%emt 00:00:07]} Nxd5 {[%clk
00:09:45]} {[%emt 00:00:01]} 8. d4 {[%clk 00:09:49]} {[%emt 00:00:04]} cxd4
{[%clk 00:09:45]} {[%emt 00:00:02]} 9. cxd4 {[%clk 00:09:50]} O-O {[%clk
00:09:43]} {[%emt 00:00:04]} 10. Nbc3 {[%clk 00:09:48]} {[%emt 00:00:03]} Be6
{[%clk 00:09:28]} {[%emt 00:00:18]} 11. Nxd5 {[%clk 00:08:21]} {[%emt
00:01:29]} Bxd5 {[%clk 00:09:29]} {[%emt 00:00:02]} 12. Be3 {[%clk 00:08:22]}
{[%emt 00:00:01]} Rc8 {[%clk 00:09:19]} {[%emt 00:00:12]} 13. Qd2 {[%clk
00:07:52]} {[%emt 00:00:31]} Bxg2 {[%clk 00:08:59]} {[%emt 00:00:22]} 14. Kxg2
{[%clk 00:07:53]} {[%emt 00:00:01]} e6 {[%clk 00:08:49]} {[%emt 00:00:12]} 15.
Rfd1 {[%clk 00:07:47]} {[%emt 00:00:08]} Ne7 {[%clk 00:08:16]} {[%emt
00:00:35]} 16. Nc3 {[%clk 00:07:35]} {[%emt 00:00:14]} Nd5 {[%clk 00:08:16]}
{[%emt 00:00:02]} 17. Ne4 {[%clk 00:06:57]} {[%emt 00:00:39]} Nxe3+ {[%clk
00:07:28]} {[%emt 00:00:50]} 18. Qxe3 {[%clk 00:06:56]} {[%emt 00:00:03]} Qb6
{[%clk 00:06:21]} {[%emt 00:01:10]} 19. d5 {[%clk 00:05:50]} {[%emt 00:01:08]}
Qxe3 {[%clk 00:06:15]} {[%emt 00:00:08]} 20. fxe3 {[%clk 00:05:51]} {[%emt
00:00:02]} Rc2+ {[%clk 00:06:00]} {[%emt 00:00:17]} 21. Rd2 {[%clk 00:05:11]}
{[%emt 00:00:42]} Rxd2+ {[%clk 00:05:56]} {[%emt 00:00:06]} 22. Nxd2 {[%clk
00:05:12]} {[%emt 00:00:01]} exd5 {[%clk 00:05:53]} {[%emt 00:00:06]} 23. Rc1
{[%clk 00:04:43]} {[%emt 00:00:30]} Bxb2 {[%clk 00:05:31]} {[%emt 00:00:24]} 24.
Rc7 {[%clk 00:04:43]} {[%emt 00:00:02]} Rb8 {[%clk 00:04:48]} {[%emt 00:00:45]}
25. Rd7 {[%clk 00:04:44]} {[%emt 00:00:02]} Bf6 {[%clk 00:04:19]} {[%emt
00:00:30]} 26. Rxd5 {[%clk 00:04:41]} {[%emt 00:00:05]} Rd8 {[%clk 00:04:19]}
{[%emt 00:00:02]} 27. e4 {[%clk 00:04:34]} {[%emt 00:00:09]} Kf8 {[%clk
00:04:09]} {[%emt 00:00:12]} 28. Kf3 {[%clk 00:04:34]} {[%emt 00:00:01]} Ke7
{[%clk 00:04:05]} {[%emt 00:00:07]} 29. Rxd8 {[%clk 00:04:22]} {[%emt
00:00:14]} Kxd8 {[%clk 00:04:06]} {[%emt 00:00:01]} 30. Nc4 {[%clk 00:04:19]}
{[%emt 00:00:05]} Kc7 {[%clk 00:04:03]} {[%emt 00:00:06]} 31. e5 {[%clk
00:04:19]} {[%emt 00:00:02]} Be7 {[%clk 00:04:04]} 32. Ke4 {[%clk 00:04:20]} b5
{[%clk 00:03:58]} {[%emt 00:00:07]} 33. Ne3 {[%clk 00:04:15]} {[%emt 00:00:08]}
Kc6 {[%clk 00:03:56]} {[%emt 00:00:04]} 34. h3 {[%clk 00:04:14]} {[%emt
00:00:03]} h5 {[%clk 00:03:47]} {[%emt 00:00:11]} 35. Nd5 {[%clk 00:04:15]}
{[%emt 00:00:01]} Bd8 {[%clk 00:03:48]} {[%emt 00:00:01]} 36. g4 {[%clk
00:03:55]} {[%emt 00:00:21]} hxg4 {[%clk 00:03:48]} {[%emt 00:00:01]} 37. hxg4
{[%clk 00:03:57]} a5 {[%clk 00:03:49]} {[%emt 00:00:01]} 38. e6 {[%clk
00:03:42]} {[%emt 00:00:16]} fxe6 {[%clk 00:03:44]} {[%emt 00:00:07]} 39. Nf4
{[%clk 00:03:42]} {[%emt 00:00:01]} Bf6 {[%clk 00:03:06]} {[%emt 00:00:40]} 40.
Nxe6 {[%clk 00:03:18]} {[%emt 00:00:27]} b4 {[%clk 00:02:58]} {[%emt 00:00:10]}
41. g5 {[%clk 00:03:16]} {[%emt 00:00:04]} Kd6 {[%clk 00:02:31]} {[%emt
00:00:29]} 42. Nf8 {[%clk 00:03:10]} {[%emt 00:00:08]} Bxg5 {[%clk 00:02:31]}
{[%emt 00:00:04]} 43. Nxg6 {[%clk 00:03:10]} Kc5 {[%clk 00:01:49]} {[%emt
00:00:44]} 44. Kd3 {[%clk 00:03:11]} {[%emt 00:00:02]} Kd5 {[%clk 00:01:48]}
{[%emt 00:00:02]} 45. Nf8 {[%clk 00:03:07]} {[%emt 00:00:05]} Be7 {[%clk
00:01:25]} {[%emt 00:00:25]} 46. Nd7 {[%clk 00:03:02]} {[%emt 00:00:08]} Bd8
{[%clk 00:01:22]} {[%emt 00:00:06]} 47. Nf8 {[%clk 00:02:59]} {[%emt 00:00:04]}
Bf6 {[%clk 00:01:04]} {[%emt 00:00:19]} 48. Nd7 {[%clk 00:02:59]} {[%emt
00:00:02]} Bg7 {[%clk 00:01:06]} {[%emt 00:00:01]} 49. Nb6+ {[%clk 00:02:56]}
{[%emt 00:00:05]} Kc5 {[%clk 00:01:06]} {[%emt 00:00:01]} 50. Nc8 {[%clk
00:02:46]} {[%emt 00:00:12]} Bf8 {[%clk 00:01:03]} {[%emt 00:00:05]} 51. Na7
{[%clk 00:02:43]} {[%emt 00:00:05]} Kb6 {[%clk 00:01:03]} {[%emt 00:00:03]} 52.
Nc8+ {[%clk 00:02:44]} Kb7 {[%clk 00:01:04]} 53. Kc4 {[%clk 00:02:44]} {[%emt
00:00:03]} Kxc8 {[%clk 00:01:04]} {[%emt 00:00:03]} 54. Kb5 {[%clk 00:02:45]}
Kc7 {[%clk 00:01:04]} {[%emt 00:00:02]} 55. Kxa5 {[%clk 00:02:46]} {[%emt
00:00:01]} Kc6 {[%clk 00:01:04]} {[%emt 00:00:01]} 0-1

[Event "Turniej 30-lecia Liceum im. Józefa Bema"]
[Site "Warsaw, Poland"]
[Date "????.??.??"]
[Round "2.4"]
[White "Dworakowski, Lukasz"]
[Black "Niedbal, Piotr"]
[Result "1-0"]
[TimeControl "0:10:02"]
[WhiteElo "2185"]
[BlackElo "1856"]

1. e4 {[%emt 00:02:33]} c5 {[%emt 00:00:01]} 2. Nc3 {[%emt 00:00:04]} e6 {[%emt
00:00:07]} 3. g3 {[%emt 00:00:01]} e5 {[%emt 00:00:28]} 4. Nd5 {[%emt
00:00:24]} Ne7 {[%emt 00:00:19]} 5. Ne3 {[%emt 00:00:10]} Nbc6 {[%emt
00:00:13]} 6. Bg2 d6 {[%emt 00:00:01]} 7. f4 {[%emt 00:00:09]} g6 {[%emt
00:00:36]} 8. Ne2 {[%emt 00:00:38]} f5 {[%emt 00:00:15]} 9. exf5 {[%emt
00:00:08]} Nxf5 {[%emt 00:00:02]} 10. O-O {[%emt 00:00:06]} Bg7 {[%emt
00:00:16]} 11. Nd5 {[%emt 00:01:16]} O-O {[%emt 00:00:16]} 12. d3 {[%emt
00:00:35]} Be6 {[%emt 00:00:47]} 13. fxe5 {[%emt 00:00:16]} dxe5 {[%clk
00:06:47]} {[%emt 00:00:18]} 14. c4 {[%clk 00:06:09]} {[%emt 00:00:35]} Nce7
{[%clk 00:06:30]} {[%emt 00:00:19]} 15. Bg5 {[%clk 00:05:22]} {[%emt 00:00:49]}
Qd7 {[%clk 00:05:54]} {[%emt 00:00:39]} 16. Nec3 {[%clk 00:04:08]} {[%emt
00:01:16]} Nxd5 {[%clk 00:05:01]} {[%emt 00:00:55]} 17. Nxd5 {[%clk 00:03:15]}
{[%emt 00:00:55]} h6 {[%clk 00:04:51]} {[%emt 00:00:11]} 18. Bd2 {[%clk
00:03:16]} Ne7 {[%clk 00:04:30]} {[%emt 00:00:24]} 19. Nxe7+ {[%clk 00:03:13]}
{[%emt 00:00:06]} Qxe7 {[%clk 00:04:30]} {[%emt 00:00:01]} 20. Bc3 {[%clk
00:03:11]} {[%emt 00:00:03]} Rxf1+ {[%clk 00:04:22]} {[%emt 00:00:10]} 21. Qxf1
{[%clk 00:03:12]} {[%emt 00:00:01]} Rf8 {[%clk 00:04:23]} 22. Qe2 {[%clk
00:03:14]} {[%emt 00:00:01]} Bf5 {[%clk 00:04:17]} {[%emt 00:00:08]} 23. Re1
{[%clk 00:03:10]} {[%emt 00:00:05]} Re8 {[%clk 00:04:02]} {[%emt 00:00:17]} 24.
g4 {[%clk 00:03:00]} {[%emt 00:00:13]} Bc8 {[%clk 00:03:44]} {[%emt 00:00:19]}
25. Qe4 {[%clk 00:02:53]} {[%emt 00:00:10]} Qg5 {[%clk 00:03:35]} {[%emt
00:00:11]} 26. Rf1 {[%clk 00:02:53]} {[%emt 00:00:02]} Qxg4 {[%clk 00:03:06]}
{[%emt 00:00:30]} 27. Qd5+ {[%clk 00:02:43]} Kh7 {[%clk 00:02:44]} {[%emt
00:00:37]} 28. Rf7 {[%clk 00:02:33]} Be6 {[%clk 00:02:34]} {[%emt 00:00:23]} 29.
Rxg7+ {[%clk 00:02:33]} Kxg7 {[%clk 00:02:35]} {[%emt 00:00:04]} 30. Qxe5+
{[%clk 00:02:34]} 1-0

[Event "Turniej 30-lecia Liceum im. Józefa Bema"]
[Site "Warsaw, Poland"]
[Date "????.??.??"]
[Round "2.5"]
[White "Pichurko, Jakub"]
[Black "Maciaga, Marcin"]
[Result "0-1"]
[TimeControl "0:10:02"]
[WhiteElo "1677"]
[BlackElo "2159"]

1. d4 {[%clk 00:10:01]} {[%emt 00:00:01]} Nf6 {[%clk 00:10:02]} {[%emt
00:00:02]} 2. Nf3 {[%clk 00:10:01]} {[%emt 00:00:02]} g6 {[%clk 00:10:02]}
{[%emt 00:00:02]} 3. Bf4 {[%clk 00:10:01]} {[%emt 00:00:02]} Bg7 {[%clk
00:10:00]} {[%emt 00:00:04]} 4. e3 {[%clk 00:10:00]} {[%emt 00:00:03]} c5
{[%clk 00:09:58]} {[%emt 00:00:05]} 5. c3 {[%clk 00:09:58]} {[%emt 00:00:05]}
O-O {[%clk 00:09:53]} {[%emt 00:00:06]} 6. h3 {[%clk 00:09:48]} {[%emt
00:00:12]} d6 {[%clk 00:09:52]} {[%emt 00:00:03]} 7. Be2 {[%clk 00:09:46]}
{[%emt 00:00:04]} Qb6 {[%clk 00:09:50]} {[%emt 00:00:04]} 8. Qb3 {[%clk
00:09:31]} {[%emt 00:00:17]} Be6 {[%clk 00:09:45]} {[%emt 00:00:06]} 9. c4
{[%clk 00:09:10]} {[%emt 00:00:25]} cxd4 {[%clk 00:08:57]} {[%emt 00:00:50]} 10.
Nxd4 {[%clk 00:08:58]} {[%emt 00:00:13]} Nc6 {[%clk 00:08:22]} {[%emt
00:00:37]} 11. Nxe6 {[%clk 00:07:50]} {[%emt 00:01:10]} fxe6 {[%clk 00:07:40]}
{[%emt 00:00:44]} 12. O-O {[%clk 00:07:44]} {[%emt 00:00:08]} Ne4 {[%clk
00:06:56]} {[%emt 00:00:46]} 13. Qxb6 {[%clk 00:05:57]} {[%emt 00:01:49]} axb6
{[%clk 00:06:53]} {[%emt 00:00:04]} 14. Nc3 {[%clk 00:05:52]} {[%emt 00:00:08]}
Nxc3 {[%clk 00:06:12]} {[%emt 00:00:43]} 15. bxc3 {[%clk 00:05:53]} {[%emt
00:00:02]} Bxc3 {[%clk 00:06:05]} {[%emt 00:00:09]} 16. Rab1 {[%clk 00:05:46]}
{[%emt 00:00:08]} Bb4 {[%clk 00:05:51]} {[%emt 00:00:16]} 17. Bf3 {[%clk
00:05:32]} {[%emt 00:00:16]} Bc5 {[%clk 00:05:49]} {[%emt 00:00:04]} 18. Rb2
{[%clk 00:05:22]} {[%emt 00:00:13]} Ra4 {[%clk 00:05:40]} {[%emt 00:00:10]} 19.
Bg4 {[%clk 00:05:10]} {[%emt 00:00:14]} Kf7 {[%clk 00:05:27]} {[%emt 00:00:16]}
20. Be2 {[%clk 00:04:46]} {[%emt 00:00:26]} Rfa8 {[%clk 00:05:25]} {[%emt
00:00:03]} 21. Ra1 {[%clk 00:04:22]} {[%emt 00:00:26]} Ra3 {[%clk 00:04:47]}
{[%emt 00:00:41]} 22. g4 {[%clk 00:03:42]} {[%emt 00:00:41]} e5 {[%clk
00:04:31]} {[%emt 00:00:19]} 23. Bh6 {[%clk 00:03:31]} {[%emt 00:00:12]} Kf6
{[%clk 00:03:18]} {[%emt 00:01:16]} 24. h4 {[%clk 00:03:31]} {[%emt 00:00:02]}
e4 {[%clk 00:03:07]} {[%emt 00:00:13]} 25. Bg5+ {[%clk 00:03:14]} {[%emt
00:00:18]} Kg7 {[%clk 00:03:01]} {[%emt 00:00:08]} 26. Kg2 {[%clk 00:02:53]}
{[%emt 00:00:24]} h6 {[%clk 00:03:00]} {[%emt 00:00:03]} 27. Bf4 {[%clk
00:02:53]} e5 {[%clk 00:03:00]} {[%emt 00:00:02]} 28. Bg3 {[%clk 00:02:49]}
{[%emt 00:00:05]} g5 {[%clk 00:03:01]} 29. Bd1 {[%clk 00:02:22]} {[%emt
00:00:31]} Bb4 {[%clk 00:02:44]} {[%emt 00:00:19]} 30. Bc2 {[%clk 00:02:15]}
{[%emt 00:00:08]} Bc3 {[%clk 00:02:35]} {[%emt 00:00:13]} 31. Rab1 {[%clk
00:02:06]} {[%emt 00:00:11]} Bxb2 {[%clk 00:02:32]} {[%emt 00:00:05]} 32. Rxb2
{[%clk 00:02:06]} {[%emt 00:00:02]} Rxa2 {[%clk 00:02:32]} {[%emt 00:00:02]} 33.
Rxa2 {[%clk 00:02:05]} {[%emt 00:00:04]} Rxa2 {[%clk 00:02:32]} {[%emt
00:00:01]} 34. Bxe4 {[%clk 00:02:05]} {[%emt 00:00:02]} Kf6 {[%clk 00:02:20]}
{[%emt 00:00:13]} 35. Kf3 {[%clk 00:01:56]} {[%emt 00:00:11]} Na5 {[%clk
00:02:18]} {[%emt 00:00:04]} 36. Bd5 {[%clk 00:01:53]} {[%emt 00:00:06]} Rc2
{[%clk 00:02:17]} {[%emt 00:00:02]} 37. Kg2 {[%clk 00:01:41]} {[%emt 00:00:13]}
Nxc4 {[%clk 00:02:13]} {[%emt 00:00:07]} 38. Bxb7 {[%clk 00:01:35]} {[%emt
00:00:07]} Nxe3+ {[%clk 00:02:13]} {[%emt 00:00:03]} 39. Kf3 {[%clk 00:01:37]}
Nf1 {[%clk 00:02:00]} {[%emt 00:00:15]} 40. Be4 {[%clk 00:01:32]} {[%emt
00:00:07]} Rc3+ {[%clk 00:01:57]} {[%emt 00:00:05]} 41. Kg2 {[%clk 00:01:30]}
{[%emt 00:00:04]} Nxg3 {[%clk 00:01:56]} {[%emt 00:00:03]} 42. fxg3 {[%clk
00:01:31]} b5 {[%clk 00:01:54]} {[%emt 00:00:05]} 0-1

[Event "Turniej 30-lecia Liceum im. Józefa Bema"]
[Site "Warsaw, Poland"]
[Date "????.??.??"]
[Round "2.6"]
[White "Adamski, Jan"]
[Black "Janeczko, Jakub"]
[Result "1-0"]
[TimeControl "0:10:02"]
[WhiteElo "2127"]
[BlackElo "1661"]

1. Nf3 {[%emt 00:01:34]} c5 2. c4 {[%emt 00:00:01]} Nc6 {[%emt 00:00:01]} 3. d4
cxd4 {[%emt 00:00:02]} 4. Nxd4 {[%emt 00:00:01]} g6 {[%emt 00:00:01]} 5. e4
{[%emt 00:00:03]} Bg7 {[%emt 00:00:01]} 6. Be3 {[%emt 00:00:01]} d6 {[%emt
00:00:09]} 7. Nc3 {[%emt 00:00:04]} Nf6 {[%emt 00:00:01]} 8. f3 {[%emt
00:00:02]} Qb6 {[%emt 00:01:09]} 9. Nf5 {[%emt 00:00:27]} Qxb2 {[%emt
00:00:02]} 10. Nxg7+ {[%emt 00:00:03]} Kf8 {[%emt 00:00:01]} 11. Na4 {[%emt
00:00:09]} Qa3 {[%emt 00:01:51]} 12. Bh6 {[%emt 00:00:40]} Qb4+ {[%emt
00:00:08]} 13. Kf2 {[%emt 00:00:40]} Kg8 {[%emt 00:00:01]} 14. Be2 {[%emt
00:01:12]} Ne5 {[%emt 00:00:06]} 15. Qb3 {[%emt 00:00:22]} Qa5 {[%emt
00:00:31]} 16. Rhd1 {[%emt 00:00:29]} Bd7 {[%emt 00:00:44]} 17. Nc3 {[%emt
00:00:14]} Qc5+ {[%emt 00:00:27]} 18. Kf1 {[%emt 00:00:02]} Bc6 {[%emt
00:01:52]} 19. Nd5 {[%emt 00:00:19]} Bxd5 {[%emt 00:00:03]} 20. cxd5 {[%emt
00:00:04]} Nfd7 {[%emt 00:00:32]} 21. f4 {[%emt 00:00:22]} 1-0

[Event "Turniej 30-lecia Liceum im. Józefa Bema"]
[Site "Warsaw, Poland"]
[Date "????.??.??"]
[Round "2.7"]
[White "Gronkowski, Dariusz"]
[Black "Praczukowski, Stanislaw"]
[Result "0-1"]
[TimeControl "0:10:02"]
[WhiteElo "1645"]
[BlackElo "2113"]

1. Nf3 {[%clk 00:10:02]} {[%emt 00:00:01]} Nf6 {[%clk 00:09:59]} {[%emt
00:00:05]} 2. c4 {[%clk 00:10:01]} {[%emt 00:00:02]} g6 {[%clk 00:09:51]}
{[%emt 00:00:11]} 3. d4 {[%clk 00:10:01]} {[%emt 00:00:02]} Bg7 {[%clk
00:09:51]} {[%emt 00:00:02]} 4. Nc3 {[%clk 00:10:01]} {[%emt 00:00:01]} d5
{[%clk 00:09:48]} {[%emt 00:00:06]} 5. e3 {[%clk 00:09:49]} {[%emt 00:00:14]}
O-O {[%clk 00:09:46]} {[%emt 00:00:04]} 6. Bd3 {[%clk 00:09:49]} {[%emt
00:00:03]} c5 {[%clk 00:09:36]} {[%emt 00:00:11]} 7. dxc5 {[%clk 00:09:28]}
{[%emt 00:00:23]} Qa5 {[%clk 00:09:20]} {[%emt 00:00:18]} 8. Bd2 {[%clk
00:09:07]} {[%emt 00:00:23]} dxc4 {[%clk 00:09:05]} {[%emt 00:00:18]} 9. Bxc4
{[%clk 00:09:01]} {[%emt 00:00:08]} Qxc5 {[%clk 00:09:04]} {[%emt 00:00:02]} 10.
Qb3 {[%clk 00:08:01]} {[%emt 00:01:02]} Nc6 {[%clk 00:08:54]} {[%emt 00:00:13]}
11. Na4 {[%clk 00:07:51]} {[%emt 00:00:12]} Qh5 {[%clk 00:08:09]} {[%emt
00:00:48]} 12. Be2 {[%clk 00:05:52]} {[%emt 00:02:00]} Ne4 {[%clk 00:07:24]}
{[%emt 00:00:47]} 13. Bc3 {[%clk 00:05:08]} {[%emt 00:00:46]} Nxc3 {[%clk
00:06:48]} {[%emt 00:00:39]} 14. Nxc3 {[%clk 00:05:08]} {[%emt 00:00:02]} Be6
{[%clk 00:05:35]} {[%emt 00:01:14]} 15. Qb5 {[%clk 00:04:53]} {[%emt 00:00:17]}
Qxb5 {[%clk 00:05:06]} {[%emt 00:00:32]} 16. Bxb5 {[%clk 00:04:50]} {[%emt
00:00:05]} a6 {[%clk 00:04:39]} {[%emt 00:00:29]} 17. Bxc6 {[%clk 00:04:49]}
{[%emt 00:00:02]} bxc6 {[%clk 00:04:40]} 18. Nd4 {[%clk 00:04:49]} {[%emt
00:00:01]} Bd5 {[%clk 00:03:43]} {[%emt 00:01:00]} 19. Nxd5 {[%clk 00:04:47]}
{[%emt 00:00:04]} cxd5 {[%clk 00:03:44]} 20. Nc6 {[%clk 00:04:46]} {[%emt
00:00:03]} e6 {[%clk 00:03:19]} {[%emt 00:00:27]} 21. Rb1 {[%clk 00:04:44]}
{[%emt 00:00:04]} Rfe8 {[%clk 00:03:18]} {[%emt 00:00:04]} 22. Ke2 {[%clk
00:04:39]} {[%emt 00:00:07]} Rac8 {[%clk 00:03:12]} {[%emt 00:00:08]} 23. Rhc1
{[%clk 00:04:37]} {[%emt 00:00:03]} Kf8 {[%clk 00:03:06]} {[%emt 00:00:09]} 24.
b4 {[%clk 00:04:30]} {[%emt 00:00:09]} Rc7 {[%clk 00:02:44]} {[%emt 00:00:24]}
25. Nd4 {[%clk 00:04:10]} {[%emt 00:00:22]} Rec8 {[%clk 00:02:35]} {[%emt
00:00:11]} 26. Kd2 {[%clk 00:03:42]} {[%emt 00:00:29]} Bxd4 {[%clk 00:02:18]}
{[%emt 00:00:20]} 27. exd4 {[%clk 00:03:42]} {[%emt 00:00:02]} Rc4 {[%clk
00:02:20]} 28. Rxc4 {[%clk 00:03:38]} {[%emt 00:00:06]} Rxc4 {[%clk 00:02:21]}
29. Kd3 {[%clk 00:03:38]} {[%emt 00:00:02]} Ke7 {[%clk 00:02:22]} 30. a4 {[%clk
00:03:33]} {[%emt 00:00:08]} Kd6 {[%clk 00:02:22]} {[%emt 00:00:03]} 31. f4
{[%clk 00:03:15]} {[%emt 00:00:18]} Kc6 {[%clk 00:02:20]} {[%emt 00:00:04]} 32.
g4 {[%clk 00:03:10]} {[%emt 00:00:07]} Kb6 {[%clk 00:02:19]} {[%emt 00:00:04]}
33. h4 {[%clk 00:02:39]} {[%emt 00:00:32]} Rc7 {[%clk 00:02:09]} {[%emt
00:00:13]} 34. h5 {[%clk 00:02:20]} {[%emt 00:00:21]} a5 {[%clk 00:02:02]}
{[%emt 00:00:09]} 35. b5 {[%clk 00:02:15]} {[%emt 00:00:06]} Rc4 {[%clk
00:02:01]} {[%emt 00:00:04]} 36. hxg6 {[%clk 00:02:13]} {[%emt 00:00:05]} hxg6
{[%clk 00:02:01]} {[%emt 00:00:02]} 37. Ra1 {[%clk 00:02:04]} {[%emt 00:00:11]}
Kb7 {[%clk 00:01:59]} {[%emt 00:00:04]} 38. Ra3 {[%clk 00:02:00]} {[%emt
00:00:05]} Rc1 {[%clk 00:02:00]} {[%emt 00:00:02]} 39. Rc3 {[%clk 00:01:59]}
{[%emt 00:00:03]} Rd1+ {[%clk 00:01:39]} {[%emt 00:00:23]} 40. Ke3 {[%clk
00:01:48]} {[%emt 00:00:13]} Ra1 {[%clk 00:01:41]} {[%emt 00:00:01]} 41. f5
{[%clk 00:01:39]} {[%emt 00:00:10]} gxf5 {[%clk 00:00:56]} {[%emt 00:00:47]} 42.
gxf5 {[%clk 00:01:39]} {[%emt 00:00:01]} Rxa4 {[%clk 00:00:42]} {[%emt
00:00:16]} 43. f6 {[%clk 00:01:14]} {[%emt 00:00:27]} e5 {[%clk 00:00:36]}
{[%emt 00:00:08]} 44. dxe5 {[%clk 00:01:10]} {[%emt 00:00:06]} d4+ {[%clk
00:00:38]} 45. Kd3 {[%clk 00:01:07]} {[%emt 00:00:06]} dxc3 {[%clk 00:00:39]}
{[%emt 00:00:01]} 46. Kxc3 {[%clk 00:01:07]} {[%emt 00:00:01]} Re4 {[%clk
00:00:40]} {[%emt 00:00:01]} 47. e6 {[%clk 00:01:03]} {[%emt 00:00:06]} Rxe6
{[%clk 00:00:41]} {[%emt 00:00:01]} 48. Kc4 {[%clk 00:01:02]} {[%emt 00:00:04]}
Rxf6 {[%clk 00:00:42]} 49. Kc5 {[%clk 00:01:03]} {[%emt 00:00:01]} Rf5+ {[%clk
00:00:43]} 50. Kc4 {[%clk 00:01:03]} {[%emt 00:00:01]} Kb6 {[%clk 00:00:44]}
{[%emt 00:00:01]} 51. Kb3 {[%clk 00:01:04]} Rf4 {[%clk 00:00:45]} {[%emt
00:00:01]} 52. Ka3 {[%clk 00:01:04]} {[%emt 00:00:03]} Kxb5 {[%clk 00:00:42]}
{[%emt 00:00:04]} 53. Ka2 {[%clk 00:01:05]} {[%emt 00:00:01]} Rf3 {[%emt
00:00:02]} 54. Ka1 Rf2 {[%clk 00:00:43]} {[%emt 00:00:01]} 55. Kb1 {[%clk
00:01:07]} {[%emt 00:00:01]} Kc4 {[%clk 00:00:44]} 56. Kc1 {[%clk 00:01:06]}
Kd3 {[%clk 00:00:44]} {[%emt 00:00:06]} 0-1